fUSD/lending_fUSD_20250108
["ID","MTS","AMOUNT","RATE_DAILY","PERIOD"]
[348100454,1736311859767,-995.05,0.0001225,5]
[348100455,1736311859777,-1002.11,0.0001225,5]
[348100456,1736311859789,-993.54,0.0001225,5]
[348100457,1736311859802,-991.39,0.0001225,5]
[348100458,1736311859812,-1017.3,0.0001225,5]
[348100459,1736311859823,-996.37,0.0001225,5]
[348100460,1736311859834,-992.72,0.0001225,5]
[348100461,1736311859844,-990.62,0.0001225,5]
[348100462,1736311859854,-991.09,0.0001225,5]
[348100463,1736311859865,-1007.74,0.0001225,5]
[348100464,1736311859876,-1007.3,0.0001225,5]
[348100465,1736311859887,-998.0,0.00012251,5]
[348100466,1736311859897,-986.86,0.00012251,5]
[348100467,1736311859908,-997.63,0.00012253,5]
[348100468,1736311859918,-1014.86,0.00012256,5]
[348100469,1736311859929,-150.0,0.00012256,2]
[348100470,1736311859939,-150.0,0.00012259,2]
[348100471,1736311859950,-1500.0,0.00012261,2]
[348100472,1736311859960,-1001.72,0.00012261,5]
[348100473,1736311859970,-400.0,0.0001227,2]
[348100474,1736311859980,-506.29956248,0.00012279,2]
[348100475,1736311860414,-443.12546668,0.00012279,2]
[348100476,1736311860425,-10.7326478,0.00012279,2]
[348100477,1736311860434,-747.27575313,0.0001228,2]
[348100478,1736311860451,-5366.17625124,0.0001228,2]
[348100479,1736311860460,-150.0,0.00012292,2]
[348100480,1736311860469,-1430.76584876,0.00012293,2]
[348100481,1736311860485,-805.80738424,0.00012293,2]
[348100482,1736311860494,-976.72305807,0.00012293,2]
[348100483,1736311860505,-1068.59510197,0.00012293,2]
[348100484,1736311860623,-336.69,0.00012188,2]
[348100485,1736311860634,-336.0,0.00012188,2]
[348100486,1736311860644,-154.16049384,0.000122,2]
[348100487,1736311860653,-3294.51988138,0.00012293,2]
[348100488,1736311860664,-338.40002,0.00012293,2]
[348100489,1736311860688,-2096.76903468,0.00012293,2]
[348100490,1736311860697,-4784.3657655,0.00012293,2]
[348100491,1736311860708,-21393.16458492,0.00012298,2]
[348100492,1736311860718,-2000.0,0.00012299,2]
[348100493,1736311860727,-2000.0,0.00012299,2]
[348100494,1736311860737,-1000.0,0.00012299,2]
[348100495,1736311860747,-1000.0,0.00012299,2]
[348100496,1736311860756,-1000.0,0.00012299,2]
[348100497,1736311860766,-1000.0,0.00012299,2]
[348100498,1736311860775,-1000.0,0.00012299,2]
[348100499,1736311860785,-1000.0,0.00012299,2]
[348100500,1736311860802,-1000.0,0.00012299,2]
[348100501,1736311860812,-1000.0,0.00012299,2]
[348100502,1736311860822,-1000.0,0.00012299,2]
[348100503,1736311860832,-918.43301095,0.00012299,2]
[348100504,1736311860841,-1325.34,0.00012299,2]
[348100505,1736311860851,-2364806.9276052,0.000123,2]
[348100506,1736311861135,-896.91094163,0.0001205,2]
[348100507,1736311861144,-8735.08905838,0.000123,2]
[348100508,1736311861155,-572.74880427,0.000123,2]
[348100509,1736311861166,-251.60619884,0.000123,2]
[348100510,1736311861181,-131316.19965744,0.000123,2]
[348100511,1736311861192,-4356.5,0.000123,2]
[348100512,1736311861502,-500.0,9.999e-05,2]
[348100513,1736311861511,-213.56914725,0.00011366,2]
[348100514,1736311861521,-154.16049384,0.000122,2]
[348100515,1736311861530,-100.20487391,0.000123,2]
[348100516,1736311861544,-385.626529,0.000123,2]
[348100517,1736311861554,-269467.01529103,0.000123,2]
[348100518,1736311861566,-19264.0,0.000123,2]
[348100519,1736311861578,-7719.93446865,0.000123,2]
[348100523,1736312505227,-1174.689986,9.566e-05,2]
[348100524,1736312505254,-1000.0,9.615e-05,2]
[348100525,1736312505280,-394.4,9.623e-05,2]
[348100526,1736312505304,-1184.88,9.69e-05,2]
[348100527,1736312505328,-250.0,9.774e-05,2]
[348100528,1736312505351,-250.0,9.831e-05,2]
[348100529,1736312505375,-1118.99807629,9.848e-05,2]
[348100530,1736312505399,-1118.99807628,9.848e-05,2]
[348100531,1736312505423,-250.0,9.851e-05,2]
[348100532,1736312505451,-300.0,9.947e-05,2]
[348100533,1736312505477,-34252.85,9.948e-05,2]
[348100534,1736312505501,-150.0,9.998e-05,2]
[348100535,1736312505528,-500.0,9.999e-05,2]
[348100536,1736312505552,-500.0,9.999e-05,2]
[348100537,1736312505576,-617.52,9.999e-05,2]
[348100538,1736312505599,-500.0,9.999e-05,2]
[348100539,1736312505621,-500.0,9.999e-05,2]
[348100540,1736312505649,-500.0,9.999e-05,2]
[348100541,1736312505674,-501.29325176,9.999e-05,2]
[348100542,1736312505697,-489.68980082,9.999e-05,2]
[348100543,1736312505720,-500.0,9.999e-05,2]
[348100544,1736312505744,-500.0,9.999e-05,2]
[348100545,1736312505769,-500.0,9.999e-05,2]
[348100546,1736312505793,-500.0,9.999e-05,2]
[348100547,1736312505818,-504.21743798,9.999e-05,2]
[348100548,1736312505845,-500.0,9.999e-05,2]
[348100549,1736312505869,-500.0,9.999e-05,2]
[348100550,1736312505894,-501.86969843,9.999e-05,2]
[348100551,1736312505918,-4030.70944612,9.999e-05,4]
[348100552,1736312505942,-1353.99,9.999e-05,2]
[348100553,1736312505967,-500.0,9.999e-05,2]
[348100554,1736312505991,-500.0,9.999e-05,2]
[348100555,1736312506014,-500.0,9.999e-05,2]
[348100556,1736312506040,-503.10021061,9.999e-05,2]
[348100557,1736312506064,-500.0,9.999e-05,2]
[348100558,1736312506086,-500.0,9.999e-05,2]
[348100559,1736312506108,-168.20129224,9.999e-05,2]
[348100560,1736312506131,-500.0,9.999e-05,2]
[348100561,1736312506153,-500.0,9.999e-05,2]
[348100562,1736312506175,-500.0,9.999e-05,2]
[348100563,1736312506208,-500.0,9.999e-05,2]
[348100564,1736312506235,-500.0,9.999e-05,2]
[348100565,1736312506266,-1292.03,9.999e-05,2]
[348100566,1736312506291,-500.0,9.999e-05,2]
[348100567,1736312506316,-500.0,9.999e-05,2]
[348100568,1736312506341,-500.0,9.999e-05,2]
[348100569,1736312506365,-500.0,9.999e-05,2]
[348100570,1736312506389,-500.77904926,9.999e-05,2]
[348100571,1736312506414,-500.0,9.999e-05,2]
[348100572,1736312506439,-500.0,9.999e-05,2]
[348100573,1736312506464,-500.0,9.999e-05,2]
[348100574,1736312506490,-500.0,9.999e-05,2]
[348100575,1736312506519,-556.72216282,9.999e-05,2]
[348100576,1736312506543,-500.0,9.999e-05,2]
[348100577,1736312506569,-500.0,9.999e-05,2]
[348100578,1736312506593,-500.0,9.999e-05,2]
[348100579,1736312506618,-500.0,9.999e-05,2]
[348100580,1736312506645,-500.0,9.999e-05,2]
[348100581,1736312506670,-500.0,9.999e-05,2]
[348100582,1736312506695,-500.0,9.999e-05,2]
[348100583,1736312506719,-500.0,9.999e-05,2]
[348100584,1736312506744,-500.0,9.999e-05,2]
[348100585,1736312506771,-500.0,9.999e-05,2]
[348100586,1736312506800,-500.0,9.999e-05,2]
[348100587,1736312506825,-500.0,9.999e-05,2]
[348100588,1736312506849,-500.0,9.999e-05,2]
[348100589,1736312506876,-500.0,9.999e-05,2]
[348100590,1736312506902,-564.58,9.999e-05,2]
[348100591,1736312506926,-500.0,9.999e-05,2]
[348100592,1736312506950,-500.0,9.999e-05,2]
[348100593,1736312506975,-500.0,9.999e-05,2]
[348100594,1736312506999,-500.0,9.999e-05,2]
[348100595,1736312507027,-500.0,9.999e-05,2]
[348100596,1736312507052,-633.5110658,9.999e-05,2]
[348100597,1736312507075,-500.0,9.999e-05,2]
[348100598,1736312507098,-500.0,9.999e-05,2]
[348100599,1736312507122,-500.0,9.999e-05,2]
[348100600,1736312507147,-500.0,9.999e-05,2]
[348100601,1736312507171,-500.0,9.999e-05,2]
[348100602,1736312507196,-876.11,9.999e-05,2]
[348100603,1736312507220,-500.0,9.999e-05,2]
[348100604,1736312507244,-500.0,9.999e-05,2]
[348100605,1736312507270,-509.00609673,9.999e-05,2]
[348100606,1736312507294,-500.0,9.999e-05,2]
[348100607,1736312507319,-500.0,9.999e-05,2]
[348100608,1736312507346,-500.0,9.999e-05,2]
[348100609,1736312507370,-500.0,9.999e-05,2]
[348100610,1736312507394,-500.0,9.999e-05,2]
[348100611,1736312507418,-289.61,9.999e-05,2]
[348100612,1736312507441,-500.0,9.999e-05,2]
[348100613,1736312507466,-243.98898622,9.999e-05,2]
[348100614,1736312507490,-500.45086475,9.999e-05,2]
[348100615,1736312507514,-6717.8500769,9.999e-05,4]
[348100616,1736312507537,-500.0,9.999e-05,2]
[348100617,1736312507800,-500.0,9.999e-05,2]
[348100618,1736312507824,-500.0,9.999e-05,2]
[348100619,1736312507847,-594.89,9.999e-05,2]
[348100620,1736312507870,-505.56441017,9.999e-05,2]
[348100621,1736312507893,-500.0,9.999e-05,2]
[348100622,1736312507915,-500.0,9.999e-05,2]
[348100623,1736312507938,-500.0,9.999e-05,2]
[348100624,1736312507961,-588.93,9.999e-05,2]
[348100625,1736312507985,-500.0,9.999e-05,2]
[348100626,1736312508015,-500.0,9.999e-05,2]
[348100627,1736312508042,-500.0,9.999e-05,2]
[348100628,1736312508067,-500.0,9.999e-05,2]
[348100629,1736312508090,-500.0,9.999e-05,2]
[348100630,1736312508114,-500.0,9.999e-05,2]
[348100631,1736312508140,-500.0,9.999e-05,2]
[348100632,1736312508164,-500.0,9.999e-05,2]
[348100633,1736312508188,-500.0,9.999e-05,2]
[348100634,1736312508211,-607.83,9.999e-05,2]
[348100635,1736312508235,-500.0,9.999e-05,2]
[348100636,1736312508262,-500.0,9.999e-05,2]
[348100637,1736312508285,-500.0,9.999e-05,2]
[348100638,1736312508309,-500.0,9.999e-05,2]
[348100639,1736312508334,-973.3,9.999e-05,2]
[348100640,1736312508357,-500.0,9.999e-05,2]
[348100641,1736312508380,-1580.23,9.999e-05,2]
[348100642,1736312508403,-500.0,9.999e-05,2]
[348100643,1736312508426,-500.0,9.999e-05,2]
[348100644,1736312508450,-500.0,9.999e-05,2]
[348100645,1736312508475,-1284.45,9.999e-05,2]
[348100646,1736312508498,-500.0,9.999e-05,2]
[348100647,1736312508524,-500.0,9.999e-05,2]
[348100648,1736312508548,-500.0,9.999e-05,2]
[348100649,1736312508573,-500.0,9.999e-05,2]
[348100650,1736312508596,-500.0,9.999e-05,2]
[348100651,1736312508621,-500.0,9.999e-05,2]
[348100652,1736312508647,-1165.61,9.999e-05,2]
[348100653,1736312508672,-500.0,9.999e-05,2]
[348100654,1736312508697,-822.71,9.999e-05,2]
[348100655,1736312508720,-501.41749538,9.999e-05,2]
[348100656,1736312508743,-500.0,9.999e-05,2]
[348100657,1736312508772,-500.0,9.999e-05,2]
[348100658,1736312508795,-475.17743529,9.999e-05,2]
[348100659,1736312508818,-500.0,9.999e-05,2]
[348100660,1736312508843,-500.0,9.999e-05,2]
[348100661,1736312508867,-500.0,9.999e-05,2]
[348100662,1736312508891,-500.0,9.999e-05,2]
[348100663,1736312508917,-564.59,9.999e-05,2]
[348100664,1736312508941,-500.0,9.999e-05,2]
[348100665,1736312508965,-500.0,9.999e-05,2]
[348100666,1736312508988,-500.0,9.999e-05,2]
[348100667,1736312509014,-500.0,9.999e-05,2]
[348100668,1736312509040,-500.0,9.999e-05,2]
[348100669,1736312509064,-500.0,9.999e-05,2]
[348100670,1736312509087,-500.0,9.999e-05,2]
[348100671,1736312509113,-1432.94,9.999e-05,2]
[348100672,1736312509136,-500.0,9.999e-05,2]
[348100673,1736312509161,-500.0,9.999e-05,2]
[348100674,1736312509184,-500.0,9.999e-05,2]
[348100675,1736312509209,-617.06,9.999e-05,2]
[348100676,1736312509233,-500.0,9.999e-05,2]
[348100677,1736312509259,-500.0,9.999e-05,2]
[348100678,1736312509283,-500.0,9.999e-05,2]
[348100679,1736312509310,-473.55040771,9.999e-05,2]
[348100680,1736312509334,-500.0,9.999e-05,2]
[348100681,1736312509359,-500.0,9.999e-05,2]
[348100682,1736312509382,-500.0,9.999e-05,2]
[348100683,1736312509405,-500.0,9.999e-05,2]
[348100684,1736312509429,-500.0,9.999e-05,2]
[348100685,1736312509453,-1527.27,9.999e-05,2]
[348100686,1736312509478,-500.0,9.999e-05,2]
[348100687,1736312509501,-500.0,9.999e-05,2]
[348100688,1736312509526,-500.0,9.999e-05,2]
[348100689,1736312509550,-869.52,9.999e-05,2]
[348100690,1736312509573,-500.0,9.999e-05,2]
[348100691,1736312509598,-500.0,9.999e-05,2]
[348100692,1736312509621,-304.02557282,9.999e-05,2]
[348100693,1736312509645,-500.0,9.999e-05,2]
[348100694,1736312509670,-500.0,9.999e-05,2]
[348100695,1736312509694,-500.0,9.999e-05,2]
[348100696,1736312509717,-500.0,9.999e-05,2]
[348100697,1736312509743,-500.0,9.999e-05,2]
[348100698,1736312509768,-500.0,9.999e-05,2]
[348100699,1736312509792,-500.0,9.999e-05,2]
[348100700,1736312509816,-500.0,9.999e-05,2]
[348100701,1736312509842,-500.0,9.999e-05,2]
[348100702,1736312509866,-500.0,9.999e-05,2]
[348100703,1736312509892,-500.0,9.999e-05,2]
[348100704,1736312509916,-500.0,9.999e-05,2]
[348100705,1736312509942,-802.12,9.999e-05,2]
[348100706,1736312509967,-172.2,0.0001,2]
[348100707,1736312509993,-336.92921134,0.0001,2]
[348100708,1736312510022,-336.92921106,0.00010003,2]
[348100709,1736312510047,-336.92921106,0.00010107,2]
[348100710,1736312510070,-567.68,0.00010137,2]
[348100711,1736312510094,-336.92921106,0.0001021,2]
[348100712,1736312510121,-500.0,0.00010273,2]
[348100713,1736312510154,-617.52,0.00010273,2]
[348100714,1736312510182,-637.78,0.00010273,2]
[348100715,1736312510210,-478.91738477,0.00010273,2]
[348100716,1736312510240,-500.0,0.00010273,2]
[348100717,1736312510269,-500.0,0.00010273,2]
[348100718,1736312510299,-1353.99,0.00010273,2]
[348100719,1736312510327,-500.0,0.00010273,2]
[348100720,1736312510354,-500.0,0.00010273,2]
[348100721,1736312510382,-500.0,0.00010273,2]
[348100722,1736312510413,-500.0,0.00010273,2]
[348100723,1736312510442,-500.0,0.00010273,2]
[348100724,1736312510473,-500.0,0.00010273,2]
[348100725,1736312510503,-1292.03,0.00010273,2]
[348100726,1736312510532,-500.0,0.00010273,2]
[348100727,1736312510561,-500.0,0.00010273,2]
[348100728,1736312510590,-500.0,0.00010273,2]
[348100729,1736312510619,-500.0,0.00010273,2]
[348100730,1736312510650,-500.0,0.00010273,2]
[348100731,1736312510677,-500.0,0.00010273,2]
[348100732,1736312510707,-500.0,0.00010273,2]
[348100733,1736312510738,-500.0,0.00010273,2]
[348100734,1736312510767,-500.0,0.00010273,2]
[348100735,1736312510792,-500.0,0.00010273,2]
[348100736,1736312510818,-500.0,0.00010273,2]
[348100737,1736312510847,-500.0,0.00010273,2]
[348100738,1736312510876,-500.0,0.00010273,2]
[348100739,1736312510901,-500.0,0.00010273,2]
[348100740,1736312510926,-500.0,0.00010273,2]
[348100741,1736312510954,-500.0,0.00010273,2]
[348100742,1736312510983,-500.0,0.00010273,2]
[348100743,1736312511009,-564.58,0.00010273,2]
[348100744,1736312511038,-279.34316345,0.00010273,2]
[348100745,1736312511066,-500.0,0.00010273,2]
[348100746,1736312511096,-500.0,0.00010273,2]
[348100747,1736312511126,-481.14689162,0.00010273,2]
[348100748,1736312511154,-500.0,0.00010273,2]
[348100749,1736312511184,-876.11,0.00010273,2]
[348100750,1736312511212,-500.0,0.00010273,2]
[348100751,1736312511240,-500.0,0.00010273,2]
[348100752,1736312511268,-500.0,0.00010273,2]
[348100753,1736312511295,-500.0,0.00010273,2]
[348100754,1736312511321,-500.0,0.00010273,2]
[348100755,1736312511347,-500.0,0.00010273,2]
[348100756,1736312511373,-500.0,0.00010273,2]
[348100757,1736312511400,-500.0,0.00010273,2]
[348100758,1736312511427,-500.0,0.00010273,2]
[348100759,1736312511454,-500.0,0.00010273,2]
[348100760,1736312511482,-500.0,0.00010273,2]
[348100761,1736312511510,-500.0,0.00010273,2]
[348100762,1736312511537,-500.0,0.00010273,2]
[348100763,1736312511564,-500.0,0.00010273,2]
[348100764,1736312511593,-500.0,0.00010273,2]
[348100765,1736312511620,-325.18,0.00010273,2]
[348100766,1736312511651,-500.0,0.00010273,2]
[348100767,1736312511680,-500.0,0.00010273,2]
[348100768,1736312511708,-500.0,0.00010273,2]
[348100769,1736312511736,-500.0,0.00010273,2]
[348100770,1736312511765,-500.0,0.00010273,2]
[348100771,1736312511792,-973.3,0.00010273,2]
[348100772,1736312511822,-1580.23,0.00010273,2]
[348100773,1736312511848,-500.0,0.00010273,2]
[348100774,1736312511877,-500.0,0.00010273,2]
[348100775,1736312511906,-1284.45,0.00010273,2]
[348100776,1736312511933,-500.0,0.00010273,2]
[348100777,1736312511960,-500.0,0.00010273,2]
[348100778,1736312511987,-500.0,0.00010273,2]
[348100779,1736312512017,-500.0,0.00010273,2]
[348100780,1736312512045,-500.0,0.00010273,2]
[348100781,1736312512076,-500.0,0.00010273,2]
[348100782,1736312512103,-1165.61,0.00010273,2]
[348100783,1736312512131,-648.79250292,0.00010273,2]
[348100784,1736312512160,-822.71,0.00010273,2]
[348100785,1736312512187,-536.8986322,0.00010273,2]
[348100786,1736312512214,-500.0,0.00010273,2]
[348100787,1736312512240,-500.0,0.00010273,2]
[348100788,1736312512270,-500.0,0.00010273,2]
[348100789,1736312512300,-500.0,0.00010273,2]
[348100790,1736312512327,-500.0,0.00010273,2]
[348100791,1736312512353,-500.0,0.00010273,2]
[348100792,1736312512379,-500.0,0.00010273,2]
[348100793,1736312512407,-500.0,0.00010273,2]
[348100794,1736312512435,-500.0,0.00010273,2]
[348100795,1736312512461,-268.22,0.00010273,2]
[348100796,1736312512490,-1432.94,0.00010273,2]
[348100797,1736312512519,-500.0,0.00010273,2]
[348100798,1736312512547,-500.0,0.00010273,2]
[348100799,1736312512575,-623.30198513,0.00010273,2]
[348100800,1736312512604,-617.06,0.00010273,2]
[348100801,1736312512633,-500.0,0.00010273,2]
[348100802,1736312512662,-500.0,0.00010273,2]
[348100803,1736312513000,-500.0,0.00010273,2]
[348100804,1736312513029,-500.0,0.00010273,2]
[348100805,1736312513053,-1527.27,0.00010273,2]
[348100806,1736312513077,-500.0,0.00010273,2]
[348100807,1736312513100,-500.0,0.00010273,2]
[348100808,1736312513124,-500.0,0.00010273,2]
[348100809,1736312513149,-869.52,0.00010273,2]
[348100810,1736312513172,-500.0,0.00010273,2]
[348100811,1736312513196,-500.0,0.00010273,2]
[348100812,1736312513220,-500.0,0.00010273,2]
[348100813,1736312513243,-500.0,0.00010273,2]
[348100814,1736312513268,-500.0,0.00010273,2]
[348100815,1736312513292,-500.0,0.00010273,2]
[348100816,1736312513315,-500.0,0.00010273,2]
[348100817,1736312513338,-500.0,0.00010273,2]
[348100818,1736312513361,-500.0,0.00010273,2]
[348100819,1736312513385,-500.0,0.00010273,2]
[348100820,1736312513409,-500.0,0.00010273,2]
[348100821,1736312513433,-576.42,0.00010273,2]
[348100822,1736312513458,-500.0,0.00010273,2]
[348100823,1736312513482,-802.12,0.00010273,2]
[348100824,1736312513506,-336.92921106,0.00010314,2]
[348100825,1736312513530,-336.92921106,0.00010417,2]
[348100826,1736312513554,-336.92921106,0.00010521,2]
[348100827,1736312513578,-500.0,0.00010546,2]
[348100828,1736312513602,-500.0,0.00010546,2]
[348100829,1736312513626,-500.0,0.00010546,2]
[348100830,1736312513652,-542.2,0.00010546,2]
[348100831,1736312513677,-500.0,0.00010546,2]
[348100832,1736312513701,-500.0,0.00010546,2]
[348100833,1736312513725,-500.0,0.00010546,2]
[348100834,1736312513749,-751.67,0.00010546,2]
[348100835,1736312513776,-500.0,0.00010546,2]
[348100836,1736312513799,-500.0,0.00010546,2]
[348100837,1736312513821,-500.0,0.00010546,2]
[348100838,1736312513846,-653.68,0.00010546,2]
[348100839,1736312513869,-500.0,0.00010546,2]
[348100840,1736312513893,-503.15178027,0.00010546,2]
[348100841,1736312513918,-500.0,0.00010546,2]
[348100842,1736312513941,-500.0,0.00010546,2]
[348100843,1736312513968,-500.0,0.00010546,2]
[348100844,1736312513993,-617.52,0.00010547,2]
[348100845,1736312514021,-500.0,0.00010547,2]
[348100846,1736312514047,-1353.99,0.00010547,2]
[348100847,1736312514070,-500.0,0.00010547,2]
[348100848,1736312514093,-500.0,0.00010547,2]
[348100849,1736312514118,-500.0,0.00010547,2]
[348100850,1736312514142,-500.0,0.00010547,2]
[348100851,1736312514168,-1292.03,0.00010547,2]
[348100852,1736312514193,-500.0,0.00010547,2]
[348100853,1736312514218,-500.0,0.00010547,2]
[348100854,1736312514243,-500.0,0.00010547,2]
[348100855,1736312514268,-500.0,0.00010547,2]
[348100856,1736312514292,-500.0,0.00010547,2]
[348100857,1736312514318,-500.0,0.00010547,2]
[348100858,1736312514344,-500.0,0.00010547,2]
[348100859,1736312514370,-500.0,0.00010547,2]
[348100860,1736312514395,-500.0,0.00010547,2]
[348100861,1736312514418,-314.98969655,0.00010547,2]
[348100862,1736312514442,-500.0,0.00010547,2]
[348100863,1736312514466,-564.58,0.00010547,2]
[348100864,1736312514489,-500.0,0.00010547,2]
[348100865,1736312514513,-500.0,0.00010547,2]
[348100866,1736312514538,-876.11,0.00010547,2]
[348100867,1736312514562,-500.0,0.00010547,2]
[348100868,1736312514587,-170.49622434,0.00010547,2]
[348100869,1736312514612,-436.54527382,0.00010547,2]
[348100870,1736312514640,-500.0,0.00010547,2]
[348100871,1736312514670,-500.0,0.00010547,2]
[348100872,1736312514696,-500.0,0.00010547,2]
[348100873,1736312514721,-500.0,0.00010547,2]
[348100874,1736312514745,-500.0,0.00010547,2]
[348100875,1736312514770,-500.0,0.00010547,2]
[348100876,1736312514794,-500.0,0.00010547,2]
[348100877,1736312514819,-500.0,0.00010547,2]
[348100878,1736312514843,-500.0,0.00010547,2]
[348100879,1736312514867,-973.3,0.00010547,2]
[348100880,1736312514892,-1580.23,0.00010547,2]
[348100881,1736312514915,-500.0,0.00010547,2]
[348100882,1736312514938,-500.0,0.00010547,2]
[348100883,1736312514962,-1284.45,0.00010547,2]
[348100884,1736312514987,-576.44,0.00010547,2]
[348100885,1736312515013,-500.0,0.00010547,2]
[348100886,1736312515041,-500.0,0.00010547,2]
[348100887,1736312515065,-500.0,0.00010547,2]
[348100888,1736312515089,-1165.61,0.00010547,2]
[348100889,1736312515114,-822.71,0.00010547,2]
[348100890,1736312515138,-500.0,0.00010547,2]
[348100891,1736312515161,-223.03,0.00010547,2]
[348100892,1736312515185,-173.59984924,0.00010547,2]
[348100893,1736312515209,-500.0,0.00010547,2]
[348100894,1736312515232,-500.0,0.00010547,2]
[348100895,1736312515256,-500.0,0.00010547,2]
[348100896,1736312515283,-1432.94,0.00010547,2]
[348100897,1736312515307,-500.0,0.00010547,2]
[348100898,1736312515330,-617.06,0.00010547,2]
[348100899,1736312515355,-303.37028889,0.00010547,2]
[348100900,1736312515378,-500.0,0.00010547,2]
[348100901,1736312515403,-1527.27,0.00010547,2]
[348100902,1736312515427,-500.0,0.00010547,2]
[348100903,1736312515454,-869.52,0.00010547,2]
[348100904,1736312515477,-500.0,0.00010547,2]
[348100905,1736312515503,-500.0,0.00010547,2]
[348100906,1736312515531,-500.0,0.00010547,2]
[348100907,1736312515557,-500.0,0.00010547,2]
[348100908,1736312515581,-500.0,0.00010547,2]
[348100909,1736312515775,-500.0,0.00010547,2]
[348100910,1736312515801,-500.0,0.00010547,2]
[348100911,1736312515824,-500.0,0.00010547,2]
[348100912,1736312515849,-500.0,0.00010547,2]
[348100913,1736312515876,-802.12,0.00010547,2]
[348100914,1736312515899,-504.35501224,0.000106,2]
[348100915,1736312515923,-500.0,0.000106,2]
[348100916,1736312515947,-295.03,0.00010607,2]
[348100917,1736312515972,-336.92921106,0.00010624,2]
[348100918,1736312515996,-336.92921106,0.00010728,2]
[348100919,1736312516024,-1000.0,0.00010816,2]
[348100920,1736312516049,-504.51,0.00010819,2]
[348100921,1736312516073,-341.23353415,0.0001082,2]
[348100922,1736312516098,-500.0,0.0001082,2]
[348100923,1736312516123,-542.2,0.0001082,2]
[348100924,1736312516148,-500.0,0.0001082,2]
[348100925,1736312516173,-500.0,0.0001082,2]
[348100926,1736312516198,-500.0,0.0001082,2]
[348100927,1736312516223,-751.67,0.0001082,2]
[348100928,1736312516249,-500.0,0.0001082,2]
[348100929,1736312516276,-500.0,0.0001082,2]
[348100930,1736312516301,-653.68,0.0001082,2]
[348100931,1736312516326,-500.0,0.0001082,2]
[348100932,1736312516351,-500.0,0.0001082,2]
[348100933,1736312516376,-500.0,0.0001082,2]
[348100934,1736312516402,-500.0,0.0001082,2]
[348100935,1736312516428,-617.52,0.00010821,2]
[348100936,1736312516453,-500.0,0.00010821,2]
[348100937,1736312516477,-1353.99,0.00010821,2]
[348100938,1736312516507,-500.0,0.00010821,2]
[348100939,1736312516533,-500.0,0.00010821,2]
[348100940,1736312516557,-593.65372004,0.00010821,2]
[348100941,1736312516582,-500.0,0.00010821,2]
[348100942,1736312516607,-1292.03,0.00010821,2]
[348100943,1736312516633,-500.0,0.00010821,2]
[348100944,1736312516658,-500.0,0.00010821,2]
[348100945,1736312516683,-500.0,0.00010821,2]
[348100946,1736312516707,-500.0,0.00010821,2]
[348100947,1736312516732,-500.0,0.00010821,2]
[348100948,1736312516757,-500.0,0.00010821,2]
[348100949,1736312516785,-500.0,0.00010821,2]
[348100950,1736312516808,-500.0,0.00010821,2]
[348100951,1736312516832,-492.67050673,0.00010821,2]
[348100952,1736312516856,-564.58,0.00010821,2]
[348100953,1736312516881,-500.0,0.00010821,2]
[348100954,1736312516905,-876.11,0.00010821,2]
[348100955,1736312516929,-500.0,0.00010821,2]
[348100956,1736312516954,-500.0,0.00010821,2]